[Event "10th Iberoamericano-ch 2024"]
[Site "Linares"]
[Date "2024.09.25"]
[Round "2.39"]
[White "Arroyo Rodriguez, Jesus"]
[Black "Galvan Cipriani, Viviana"]
[Result "1/2-1/2"]
[ECO "B41"]
[WhiteElo "2006"]
[BlackElo "2141"]
[Annotator "TA"]
[PlyCount "158"]
[EventDate "2024.09.25"]
[EventType "swiss"]
[EventCountry "ESP"]
[SourceTitle "playchess.com"]
[Source "ChessBase"]
[SourceQuality "1"]
[TimeControl "5400+30"]

{[%evp 12,158,47,-4,58,52,53,58,65,54,61,53,84,27,23,10,73,37,69,68,168,146,148,150,205,148,163,97,91,92,173,23,39,-24,-30,-80,-27,-41,169,153,177,167,153,155,146,111,186,190,190,177,185,181,170,155,162,175,215,208,220,200,211,179,184,127,132,132,133,127,113,48,58,59,127,118,199,123,148,95,136,107,83,0,0,0,0,13,14,8,65,2,9,6,9,13,18,0,40,0,44,0,97,109,108,0,0,0,0,0,0,0,0,0,0,0,0,0,0,0,0,0,0,0,0,0,0,0,0,0,0,0,0,0,0,0,0,0,0,0,0,0,0,0,0,0,0,0,0,0,0]} 1. e4 {[%emt 0:01:50]} c5 {[%emt 0:00:06]} 2. Nf3 {[%emt 0:00:09]} e6 {[%emt 0:01:20]} 3. d4 {[%emt 0:00:09]} cxd4 {[%emt 0:00:06]} 4. Nxd4 {[%emt 0:00:03]} a6 {[%emt 0:00:05]} 5. c4 {[%emt 0:00:12]} Nf6 {[%emt 0:00:06]} 6. Nc3 {[%emt 0:00:13]} Bb4 {[%emt 0:00:31]} 7. Qc2 {[%emt 0:00:31] 7.Qd3 is nu de hoofdvariant geworden.} (7. Qd3 $14) 7... Qc7 {[%emt 0:00:53] B41: Siciliaans: Kan Variant: 5 c4.} (7... O-O $11) 8. a3 $14 {[%emt 0:02:01] Beste} Bd6 {[%emt 0:05:39][%cal Ob8c6]} 9. h3 {[%emt 0:09:52] OK} Nc6 {[%emt 0:00:29] OK. Wit staat iets beter.} 10. Be3 $146 {[%emt 0:01:26] OK} ({Predecessor:} 10. Nf3 b6 11. Be2 Bb7 12. O-O h5 13. Bd2 Ng4 14. e5 Ncxe5 15. Nxe5 Bxe5 16. f4 {½-½ Radnai,A (2165)-Sztruhar,Z (2024) HUN-chT U20 Budapest 2004 (2)}) 10... O-O {[%emt 0:01:00] OK} 11. Rd1 {[%emt 0:07:15]} Bf4 {[%emt 0:05:56] Onnauwkeurig} 12. Qd2 {[%emt 0:05:20] Fout (0.6)} (12. Bxf4 $16 Qxf4 13. Nxc6 dxc6 14. Be2) 12... Bxe3 $11 {[%emt 0:05:33] OK} 13. Qxe3 {[%emt 0:00:03]} Ne5 {[%emt 0:00:55] Houdt de partij in balans. Fout (0.6)} (13... d5 $1 $11) 14. b3 {[%emt 0:05:13] Onnauwkeurig} b6 {[%emt 0:00:39] Onnauwkeurig} 15. f4 {[%emt 0:03:30] OK} {Zwart zou moeten proberen} Nc6 {[%emt 0:00:16] Fout (1.0)} (15... Ng6 $1 $14) 16. e5 $18 {[%emt 0:02:03] OK} Ne8 {[%emt 0:00:22] OK} 17. Bd3 {[%emt 0:02:53] Wit is veel actiever.} f5 {[%emt 0:02:09] was nodig. Fout (0.6)} (17... Bb7 $16) 18. g4 {[%emt 0:03:48][%cal Rg4f5]} Bb7 {[%emt 0:04:45] OK} 19. Rg1 {[%emt 0:01:05] Fout (0.7)} (19. gxf5 $2 Nxd4 20. fxe6 dxe6 $19 (20... Bxh1 $2 21. e7 $19) (20... Bxh1 $2 21. e7 $19)) (19. Rf1 $18) 19... Nxd4 $16 {[%emt 0:02:31] Beste} 20. Qxd4 {[%emt 0:04:52]} fxg4 {[%emt 0:00:48] was een poging waard. Fout (0.8)} (20... d6 $16) 21. Ne4 {[%emt 0:10:06] Fout (1.5)} ({Weersta} 21. Rxg4 $6 Rd8 $16 (21... Bf3 22. Bxh7+ Kxh7 23. Qd3+ Kg8 24. Qxf3 $11)) (21. hxg4 $18 {Sterke dreiging met Rf1.} b5 22. Rf1 (22. cxb5 axb5 23. Nxb5 Qa5+ 24. Kf2 Nc7 $14)) 21... Rxf4 {[%emt 0:27:17] [#]} 22. Nf6+ $1 {[%emt 0:02:42] Fout (0.6)} Rxf6 $11 {[%emt 0:00:06] OK} (22... gxf6 $2 {te hebberig.} 23. Qxf4 h5 24. Bg6 $18 (24. hxg4 h4 $18)) 23. exf6 {[%emt 0:00:21] Onnauwkeurig} Nxf6 {[%emt 0:00:34] Onnauwkeurig} (23... gxh3 $2 {vergaat.} 24. Bxh7+ Kxh7 25. f7 $18 (25. fxg7 $2 {verliest.} Kg8 $19)) 24. hxg4 {[%emt 0:06:14][%cal Bh3g4,Bg4g5][%mdl 32] EV=12.21. OK} Qc5 $2 {[%emt 0:04:15] houdt voorsprong. Verliest partij (2.1)} (24... Rf8 $15) 25. Qxc5 $18 {[%emt 0:01:06] Beste (Gemakkelijk)} bxc5 {[%emt 0:00:08]} 26. g5 {[%emt 0:00:21] Beste (Gemakkelijk)} Ne8 {[%emt 0:00:08] OK} 27. Rd2 {[%emt 0:00:49][%mdl 1024] Wit heeft sterke compensatie.} g6 {[%emt 0:01:59]} 28. Bf1 {[%emt 0:01:53]} d5 {[%emt 0:12:07] was hoogst noodzakelijk. Fout (0.8)} (28... Bc8 $16) 29. Bg2 {[%emt 0:02:49][%cal Rc4d5] OK} Nc7 {[%emt 0:01:10] OK} 30. Rf1 {[%emt 0:00:51] OK} Re8 {[%emt 0:03:44] OK} 31. Rdf2 {[%emt 0:03:35]} Re7 {[%emt 0:00:08] Voorkomt Rf7. OK} 32. Rf8+ {[%emt 0:00:51] OK} Kg7 {[%emt 0:00:04]} 33. Rb8 {[%emt 0:01:23] OK} Ne8 {[%emt 0:04:27]} 34. Kd1 {[%emt 0:00:25]} h6 {[%emt 0:05:21] OK} 35. gxh6+ {[%emt 0:01:41]} Kxh6 {[%emt 0:00:14]} 36. Re1 {[%emt 0:01:39][%cal Og2d5] Bxd5! zou dodelijk zijn. OK} Nf6 {[%emt 0:00:58] OK} 37. cxd5 {[%emt 0:03:00] Fout (0.6)} (37. Rd8 $18) 37... Nxd5 $16 {[%emt 0:00:57]} 38. Kc1 {[%emt 0:00:48] OK} a5 {[%emt 0:05:18]} 39. Be4 {[%emt 0:03:15] met als doel voor Rg1.} Kg7 {[%emt 0:04:28] Beste} 40. Rg1 {[%emt 0:03:44] Fout (0.7)} (40. Kb2 $16) 40... Nf4 $1 $14 {[%emt 0:00:48] Sterk} 41. Re1 {[%emt 0:01:28][%cal Re4b7]} ({Veel zwakker is} 41. Rxb7 Rxb7 $11) 41... Nd5 {[%emt 0:01:37] Fout (0.7)} (41... Bd5 $2 42. Bxd5 (42. Rb5 c4 $16) 42... Nxd5 (42... Nd3+ $2 43. Kd2 $18) 43. Rb5 $18) (41... Bxe4 $1 $14 42. Rxe4 e5) 42. Kb2 $16 {[%emt 0:00:32] OK} ({Doe niet} 42. Rg1 Nf4 43. Re1 (43. Rxb7 Rxb7 44. Bxb7 Ne2+ 45. Kd2 Nxg1 $11) 43... Bxe4 (43... Bd5 44. Bxd5 Nxd5 45. Rb5 $18) 44. Rxe4 e5) 42... Rf7 {[%emt 0:00:59] [#] gaat door met vechten. Fout (0.8)} (42... g5 $16 43. Rg1 Kf6) {Wit zou moeten proberen} 43. Rh1 {[%emt 0:02:13] Fout (0.8)} (43. Rg1 $1 $18 {[%cal Rg1g6]} Rf2+ 44. Bc2) 43... Rf2+ {[%emt 0:00:18] OK} 44. Kc1 {[%emt 0:00:14] Fout (0.5)} (44. Ka1 Bc6 45. Rbh8) 44... Ba6 {[%emt 0:00:36] OK} 45. Bxd5 {[%emt 0:06:12]} exd5 {[%emt 0:00:04][%mdl 4096] Eindspel. KRR-KRB} {Wit zou moeten spelen} 46. Ra8 {[%emt 0:00:08] Fout (0.8)} (46. Rd1 $16) 46... Bd3 $11 {[%emt 0:00:19] Beste (Gemakkelijk)} 47. Rxa5 {[%emt 0:01:40] OK} Rc2+ {[%emt 0:00:10]} 48. Kd1 {[%emt 0:00:10] Beste (Gemakkelijk)} Ra2 {[%emt 0:01:32]} 49. Rxc5 {[%emt 0:01:26] Hoopt vervolgens op Rh3. OK} {Zwart zou moeten spelen} Be4 {[%emt 0:00:12] Fout (0.6)} (49... Rxa3 $11 50. Rxd5 Ra1+ 51. Kd2 Rxh1 52. Rxd3 Kf6) {Beter is} 50. Re1 {[%emt 0:00:34] Fout (0.6)} (50. Rc7+ $14 Kf6 51. Rf1+ Ke6 52. a4) 50... Rxa3 {[%emt 0:00:37] OK} 51. Rb5 {[%emt 0:00:48] OK} Kf6 {[%emt 0:00:16]} 52. Kd2 {[%emt 0:00:11] OK} Ke5 {[%emt 0:00:44]} 53. Rg1 {[%emt 0:00:45]} Ra2+ {[%emt 0:00:39] Onnauwkeurig} 54. Ke3 {[%emt 0:00:33] Onnauwkeurig} Ra3 {[%emt 0:00:35] Onnauwkeurig} 55. Rg5+ {[%emt 0:00:24] Onnauwkeurig} Kf6 {[%emt 0:00:29] blijft gelijk. Fout (1.0)} (55... Bf5 $11) 56. Kf4 $16 {[%emt 0:00:11] Beste (Gemakkelijk)} Ra6 {[%emt 0:00:30] Tegen Rb6+. Beste} {Wit zou kunnen overwegen} 57. Rgxd5 {[%emt 0:00:47] Fout (1.1)} (57. Re5 $16) 57... Bxd5 $11 {[%emt 0:00:04] De stelling is in evenwicht.} 58. Rxd5 $16 {[%emt 0:00:08] KR-KR} Rb6 {[%emt 0:00:01] OK} 59. Rd3 {[%emt 0:00:16] OK} Rb4+ {[%emt 0:00:07]} 60. Kf3 {[%emt 0:00:29] OK} Kg5 {[%emt 0:00:08]} 61. Rc3 {[%emt 0:00:37] OK} Kh5 {[%emt 0:00:26]} 62. Kg3 {[%emt 0:00:28]} Rd4 {[%emt 0:00:18]} 63. Kh3 {[%emt 0:00:17]} Rh4+ {[%emt 0:01:24]} 64. Kg3 {[%emt 0:00:03]} Rg4+ {[%emt 0:00:06]} 65. Kh3 {[%emt 0:00:11]} Rg1 {[%emt 0:00:13]} 66. Kh2 {[%emt 0:00:26]} Rd1 {[%emt 0:00:46]} 67. Kh3 {[%emt 0:00:18]} g5 {[%emt 0:00:23]} 68. Kg3 {[%emt 0:00:16]} Rb1 {[%emt 0:01:20]} 69. Rd3 {[%emt 0:00:08] OK} Rg1+ {[%emt 0:00:17]} 70. Kh2 {[%emt 0:00:16]} Rc1 {[%emt 0:01:19]} 71. Kg3 {[%emt 0:00:06] OK} Kg6 {[%emt 0:00:29]} 72. Rd6+ {[%emt 0:01:39]} Kf5 {[%emt 0:00:09] OK} 73. Rd5+ {[%emt 0:01:04] OK} Kf6 {[%emt 0:00:14]} 74. Kg4 {[%emt 0:01:14]} Rg1+ {[%emt 0:00:17] OK} 75. Kf3 {[%emt 0:00:08] OK} Kg6 {[%emt 0:00:38]} 76. Rd3 {[%emt 0:01:14]} Kh5 {[%emt 0:00:42]} 77. Kf2 {[%emt 0:00:13]} Rg4 {[%emt 0:00:10] OK} 78. Rh3+ {[%emt 0:00:38] OK} Kg6 {[%emt 0:00:09] Beste (Gemakkelijk)} 79. Rc3 {[%emt 0:00:16] OK} Rf4+ {[%emt 0:00:14] Blunder waarde: Wit=0.26 (precies) /Zwart=0.30.  Verliest partij:   	---       	Zwart=1      Fout:        	Wit=11     	Zwart=9      Onnauwkeurig:    	Wit=4      	Zwart=5      OK:         	Wit=25     	Zwart=19     Beste:        	Wit=5      	Zwart=5      Sterk:        	---       	Zwart=1} 1/2-1/2

[Event "10th Iberoamericano-ch 2024"]
[Site "Linares"]
[Date "2024.09.25"]
[Round "2.40"]
[White "Diaz Mino, Daniel"]
[Black "Lobo Pereira, Arami"]
[Result "1-0"]
[ECO "C07"]
[WhiteElo "2130"]
[BlackElo "2006"]
[Annotator "RC"]
[PlyCount "25"]
[EventDate "2024.09.25"]
[EventType "swiss"]
[EventCountry "ESP"]
[SourceTitle "playchess.com"]
[Source "ChessBase"]
[SourceQuality "1"]
[TimeControl "5400+30"]

1. e4 {[%emt 0:00:03]} e6 {[%emt 0:00:54]} 2. d4 {[%emt 0:00:05]} d5 {[%emt 0:00:04]} 3. Nd2 {[%emt 0:00:08]} c5 {[%emt 0:00:12]} 4. exd5 {[%emt 0:00:08]} Qxd5 {[%emt 0:00:35]} 5. dxc5 {[%emt 0:00:30]} Bxc5 {[%emt 0:01:21]} 6. Ngf3 {[%emt 0:00:26]} Nf6 {[%emt 0:02:45]} 7. Bc4 {[%emt 0:03:03]} Qd8 {[%emt 0:00:16]} 8. O-O {[%emt 0:00:31]} O-O {[%emt 0:00:30]} 9. Qe2 {[%emt 0:06:03]} Nbd7 {[%emt 0:05:16]} 10. Rd1 {[%emt 0:13:55]} Qc7 {[%emt 0:03:21]} 11. Nb3 {[%emt 0:31:53]} Bd6 {[%emt 0:12:03]} 12. Bg5 {[%emt 0:00:30]} Re8 {[%emt 0:00:30]} 13. Bb5 {[%emt 0:13:27]} 1-0